bitfinex/quotes_SOLUSD_20251208
["timestamp","ask_amount","ask_price","bid_price","bid_amount"]
[1765226704255,9.46994492,134.31,134.29,7.44657085]
[1765226705277,9.46994492,134.31,134.28,10.69966882]
[1765226705474,7.44553125,134.31,134.27,7.44744615]
[1765226705682,8.80994492,134.29,134.26,72.130497]
[1765226705870,8.80994492,134.29,134.26,7.44789134]
[1765226706060,9.46994492,134.29,134.27,7.44759555]
[1765226706262,8.80994492,134.29,134.27,10.03020121]
[1765226706462,8.80994492,134.31,134.28,3.25260566]
[1765226706661,0.66,134.35,134.3,2.58260566]
[1765226706962,8.80994492,134.32,134.3,64.68260566]
[1765226707173,16.308864,134.33,134.31,3.25260566]
[1765226707672,16.308864,134.33,134.31,2.58260566]
[1765226707864,16.968864,134.33,134.31,2.58260566]
[1765226708578,16.968864,134.33,134.3,62.77]
[1765226708579,0.66,134.32,134.3,62.1]
[1765226709969,16.91431016,134.33,134.3,69.54596567]
[1765226710164,16.91431016,134.33,134.3,72.79857133]
[1765226710373,9.46994492,134.33,134.3,72.79857133]
[1765226711072,16.91437947,134.33,134.3,65.35260566]
[1765226711271,16.91437947,134.33,134.3,64.68260566]
[1765226711473,0.66,134.32,134.3,64.68260566]
[1765226711691,0.66,134.32,134.3,62.1]
[1765226712790,7.44546199,134.31,134.29,62.1]
[1765226712974,8.80994492,134.3,134.29,62.1]
[1765226713165,9.46994492,134.3,134.29,62.1]
[1765226713566,14.4689087,134.3,134.29,62.1]
[1765226713771,14.46879059,134.3,134.29,62.1]
[1765226714908,9.46994492,134.3,134.29,62.1]
[1765226715068,8.80994492,134.3,134.29,62.1]
[1765226715614,8.80994492,134.3,134.29,62.5479]
[1765226717387,16.9159613,134.3,134.29,62.5479]
[1765226718085,21.91586805,134.3,134.29,62.5479]
[1765226718390,21.91632618,134.3,134.29,62.5479]
[1765226718574,21.91632618,134.3,134.29,0.4479]
[1765226719385,16.9159613,134.3,134.29,0.4479]
[1765226719567,24.49938448,134.3,134.29,0.4479]
[1765226720188,13.81076244,134.3,134.29,0.4479]
[1765226720581,8.80994492,134.3,134.29,1.1179]
[1765226720897,24.4133434,134.35,134.29,91.86350364]
[1765226721084,4.99950689,134.34,134.3,0.67]
[1765226721280,4.99950689,134.34,134.31,2.58260566]
[1765226721477,5.65950689,134.34,134.31,2.58260566]
[1765226721679,5.65950689,134.34,134.31,3.27260566]
[1765226721879,4.99950689,134.34,134.31,10.71773452]
[1765226722296,5.65950689,134.34,134.31,10.71773452]
[1765226724304,13.10336388,134.34,134.3,10.02842676]
[1765226724496,13.10336388,134.34,134.31,62.1]
[1765226724801,13.10336388,134.34,134.31,62.79]
[1765226726502,9.46994492,134.33,134.31,62.1]
[1765226726804,17.62994492,134.33,134.31,62.1]
[1765226727483,14.47274529,134.32,134.31,62.1]
[1765226727791,21.91769685,134.32,134.28,72.81951823]
[1765226728104,16.91489648,134.32,134.29,0.69]
[1765226728285,16.96994492,134.31,134.28,70.23691257]
[1765226728889,17.62994492,134.31,134.28,69.54691257]
[1765226729505,17.62994492,134.31,134.28,70.23691257]
[1765226730385,26.99809777,134.31,134.28,62.1]
[1765226730586,25.07549211,134.31,134.28,70.23705486]
[1765226731781,25.07549211,134.31,134.28,62.79]
[1765226732295,25.07549211,134.31,134.28,70.23696144]
[1765226732602,17.62994492,134.31,134.28,70.23696144]
[1765226732792,16.96994492,134.31,134.29,0.69]
[1765226736010,16.96994492,134.31,134.29,8.13650705]
[1765226736202,8.80994492,134.32,134.3,3.27260566]
[1765226736393,8.80994492,134.32,134.3,0.69]
[1765226736580,8.80994492,134.32,134.31,0.69]
[1765226736783,25.11880892,134.3,134.29,0.4479]
[1765226736985,25.11880892,134.3,134.16,1.09999999]
[1765226736986,8.80994492,134.29,134.21,2.58260566]
[1765226737312,8.80994492,134.25,134.22,0.69]
[1765226737513,16.40229771,134.25,134.22,0.69]
[1765226737702,19.50155714,134.25,134.22,0.69]
[1765226738301,11.39255058,134.25,134.22,8.14036742]
[1765226738613,8.24956228,134.24,134.2,16.30103092]
[1765226739306,3.24260566,134.24,134.21,7.45096967]
[1765226739513,18.8416608,134.25,134.21,8.14096967]
[1765226739817,19.5016608,134.25,134.22,0.69]
[1765226740396,11.39255058,134.23,134.2,0.69]
[1765226740616,11.39255058,134.23,134.19,8.14210191]
[1765226740911,12.05255058,134.23,134.19,8.14210191]
[1765226741416,19.50267378,134.23,134.19,8.14210191]
[1765226741791,8.80994492,134.19,134.18,0.2]
[1765226741991,24.55297611,134.19,134.18,0.2]
[1765226742192,25.21297611,134.19,134.18,0.2]
[1765226742421,27.79558177,134.19,134.18,0.2]
[1765226742585,25.21297611,134.19,134.18,0.2]
[1765226742787,28.7993586,134.19,134.18,0.2]
[1765226743413,23.79893307,134.19,134.18,0.2]
[1765226743637,36.23960962,134.19,134.18,0.2]
[1765226745002,31.25105319,134.19,134.18,0.2]
[1765226745188,36.23438014,134.19,134.18,0.2]
[1765226746019,31.25105319,134.19,134.18,0.2]
[1765226746320,7.45199022,134.2,134.18,0.2]
[1765226746521,23.79893307,134.19,134.18,0.2]
[1765226746689,23.79893307,134.19,134.16,0.1]
[1765226746894,25.11880892,134.14,134.13,0.1]
[1765226747110,39.44779707,134.14,134.13,0.1]
[1765226747487,39.96779707,134.14,134.13,0.1]
[1765226747699,47.42269493,134.14,134.13,0.1]
[1765226749612,40.73370678,134.14,134.13,0.1]
[1765226749908,46.90269493,134.14,134.13,0.1]
[1765226750222,16.96994492,134.14,134.13,0.1]
[1765226750823,8.80994492,134.14,134.13,6.95898815]
[1765226751024,8.16,134.17,134.13,6.95898815]
[1765226751203,29.93008933,134.19,134.15,6.16898815]
[1765226751204,8.80994492,134.18,134.15,6.16898815]
[1765226751528,8.80994492,134.18,134.14,0.69]
[1765226751529,8.16,134.19,134.16,6.16898815]
[1765226751828,8.80994492,134.18,134.17,0.71]
[1765226753605,8.80994492,134.18,134.17,8.16323097]
[1765226753807,8.80994492,134.18,134.17,14.33221912]
[1765226754117,8.80994492,134.2,134.17,14.33221912]
[1765226754317,8.80994492,134.2,134.18,0.71]
[1765226755504,16.26151883,134.2,134.16,13.62258261]
[1765226755708,8.80994492,134.2,134.16,14.33258261]
[1765226755907,8.80994492,134.2,134.17,14.33204025]
[1765226756832,8.80994492,134.2,134.18,0.71]
[1765226757015,8.80994492,134.2,134.18,62.81]
[1765226759000,19.14223102,134.25,134.19,6.87898815]
[1765226759205,16.96994492,134.24,134.2,6.16898815]
[1765226759421,33.27880892,134.24,134.21,6.16898815]
[1765226759608,25.11880892,134.22,134.21,6.87898815]
[1765226759925,25.11880892,134.22,134.21,6.16898815]
[1765226760427,25.11880892,134.22,134.21,6.87898815]
[1765226760608,8.16,134.24,134.21,6.87898815]
[1765226760808,8.16,134.24,134.22,6.84898815]
[1765226761034,8.16,134.24,134.22,14.29928673]
[1765226761262,8.16,134.24,134.23,0.68]
[1765226761831,8.80994492,134.25,134.23,0.68]
[1765226762131,8.80994492,134.25,134.23,6.84898815]
[1765226762516,8.80994492,134.25,134.24,0.68]
[1765226764432,8.80994492,134.25,134.24,17.78001081]
[1765226764810,8.80994492,134.27,134.24,12.1700785]
[1765226765125,24.41788261,134.27,134.23,11.49057187]
[1765226765327,24.41788261,134.27,134.24,0.68]
[1765226765734,8.80994492,134.25,134.21,0.68]
[1765226765909,8.16,134.24,134.21,0.68]
[1765226766110,8.80994492,134.23,134.21,0.68]
[1765226766515,8.80994492,134.23,134.2,0.68]
[1765226766738,9.32994492,134.23,134.18,74.27325489]
[1765226766937,9.32994492,134.23,134.19,0.68]
[1765226767438,7.45045447,134.22,134.19,0.68]
[1765226767641,16.26005441,134.23,134.19,12.1727604]
[1765226768239,16.26005441,134.23,134.19,4.72073405]
[1765226768446,8.16,134.22,134.19,4.72073405]
[1765226769739,15.61052115,134.22,134.19,4.72073405]
[1765226770247,15.61052115,134.22,134.19,0.68]
[1765226770642,13.37067897,134.21,134.16,74.27432708]
[1765226770841,8.16,134.2,134.16,74.27432708]
[1765226771145,8.16,134.2,134.17,0.68]
[1765226771638,24.468864,134.22,134.17,26.76617618]
[1765226771835,8.16,134.22,134.2,4.04073405]
[1765226772041,16.96994492,134.24,134.2,66.14073405]
[1765226772239,16.96994492,134.24,134.21,0.68]
[1765226773420,16.96994492,134.24,134.2,62.1]
[1765226773421,4.56073405,134.23,134.2,62.1]
[1765226773645,8.80994492,134.21,134.2,62.1]
[1765226774018,16.308864,134.23,134.2,62.78]
[1765226774349,0.52,134.26,134.21,0.68]
[1765226774350,63.3908348,134.25,134.21,0.68]
[1765226774734,40.72759849,134.25,134.21,0.68]
[1765226775650,44.76833254,134.25,134.21,0.68]
[1765226775829,44.76833254,134.25,134.21,8.13065016]
[1765226776270,44.76833254,134.25,134.22,0.68]
[1765226777950,44.76833254,134.25,134.22,62.78]
[1765226778448,12.85067897,134.23,134.19,0.68]
[1765226778629,21.01067897,134.22,134.18,0.68]
[1765226778830,12.85067897,134.19,134.15,0.68]
[1765226779050,8.80994492,134.17,134.15,0.68]
[1765226779346,8.80994492,134.17,134.15,8.13415902]
[1765226779552,8.80994492,134.17,134.15,12.17489307]
[1765226779748,12.20073405,134.2,134.16,0.68]
[1765226780260,4.98469305,134.19,134.16,0.68]
[1765226780633,25.27385697,134.2,134.16,8.1336732]
[1765226780844,25.11880892,134.18,134.17,0.68]
[1765226783149,8.80994492,134.19,134.17,17.79508415]
[1765226783352,8.80994492,134.19,134.18,9.66185318]
[1765226783553,8.80994492,134.19,134.18,0.71]
[1765226783940,24.4207147,134.22,134.18,17.82452869]
[1765226784260,8.80994492,134.2,134.18,72.47185318]
[1765226784430,8.80994492,134.2,134.19,0.71]
[1765226785361,8.80994492,134.2,134.18,62.81]
[1765226785560,8.80994492,134.2,134.18,62.1]
[1765226785738,16.96994492,134.2,134.18,62.1]
[1765226786242,24.42152916,134.2,134.18,62.1]
[1765226786441,16.96994492,134.2,134.19,0.71]
[1765226786752,8.80994492,134.21,134.19,0.71]
[1765226787749,8.80994492,134.21,134.19,10.37185318]
[1765226788251,8.80994492,134.21,134.19,17.82359875]
[1765226788577,0.52,134.25,134.19,17.82359875]
[1765226788578,15.92734618,134.27,134.2,10.37185318]
[1765226788756,21.95980916,134.25,134.21,9.66185318]
[1765226788953,16.96994492,134.25,134.22,0.71]
[1765226789563,24.41898815,134.25,134.22,0.71]
[1765226789765,24.41898815,134.25,134.21,9.66185318]
[1765226789951,8.80994492,134.23,134.2,62.1]
[1765226790152,8.80994492,134.23,134.2,0.71]
[1765226790556,16.96994492,134.23,134.2,0.71]
[1765226790972,8.80994492,134.23,134.22,7.45045447]
[1765226791187,8.80994492,134.23,134.22,17.11230765]
[1765226791485,8.80994492,134.25,134.22,17.82230765]
[1765226791654,8.80994492,134.25,134.24,9.66185318]
[1765226792073,8.80994492,134.25,134.24,10.37185318]
[1765226792691,8.80994492,134.25,134.24,0.71]
[1765226795676,8.80994492,134.25,134.24,62.81]
[1765226796993,18.6139024,134.31,134.24,17.82119763]
[1765226797181,13.81207416,134.29,134.26,9.66185318]
[1765226797488,5.00212924,134.29,134.27,10.37185318]
[1765226797663,5.00212924,134.3,134.28,9.66185318]
[1765226797990,8.80994492,134.3,134.28,10.37185318]
[1765226798195,8.80994492,134.3,134.29,0.71]
[1765226799090,8.80994492,134.3,134.29,10.37185318]
[1765226799296,8.80994492,134.31,134.29,17.81842403]
[1765226799660,8.80994492,134.31,134.27,10.37185318]
[1765226799887,8.80994492,134.31,134.28,0.71]
[1765226800661,16.25553867,134.31,134.28,0.71]
[1765226802674,16.25553867,134.31,134.28,4.74910894]
[1765226804892,8.68,134.32,134.28,4.74910894]
[1765226805192,8.68,134.32,134.28,66.84910894]
[1765226806194,8.68,134.32,134.29,0.71]
[1765226806366,8.16,134.32,134.3,4.03910894]
[1765226806565,8.16,134.32,134.29,4.74910894]
[1765226806798,8.16,134.32,134.3,4.03910894]
[1765226807092,8.16,134.32,134.3,0.71]
[1765226807302,9.32994492,134.31,134.28,62.1]
[1765226807597,8.16,134.32,134.29,4.74910894]
[1765226808489,8.16,134.32,134.29,12.19556966]
[1765226808705,8.16,134.32,134.3,12.19504176]
[1765226808869,8.16,134.32,134.31,4.03910894]
[1765226809191,17.16994492,134.34,134.31,66.84910894]
[1765226809394,8.36,134.34,134.32,4.74910894]
[1765226809599,0.2,134.34,134.33,4.03910894]
[1765226809771,0.2,134.34,134.33,4.74910894]
[1765226810281,0.2,134.34,134.33,66.84910894]
[1765226811096,0.2,134.34,134.33,62.1]
[1765226811476,0.2,134.34,134.33,62.77]
[1765226811806,0.2,134.34,134.3,74.25488422]
[1765226811971,0.2,134.34,134.31,8.11545608]
[1765226812164,0.2,134.34,134.31,12.15456502]
[1765226812397,0.2,134.34,134.3,62.1]
[1765226812398,0.2,134.34,134.33,4.03910894]
[1765226812573,0.2,134.34,134.33,11.48346239]
[1765226812769,0.2,134.34,134.33,12.15346239]
[1765226813668,0.2,134.34,134.33,74.25346239]
[1765226814790,0.2,134.34,134.33,79.85022368]
[1765226815401,0.2,134.34,134.33,71.73587023]
[1765226815580,0.2,134.34,134.33,72.40587023]
[1765226815784,0.2,134.34,134.33,9.63587023]
[1765226818805,0.2,134.34,134.32,0.67]
[1765226818999,0.2,134.34,134.33,9.63587023]
[1765226819580,0.2,134.34,134.33,17.75022368]
[1765226822407,0.2,134.34,134.33,79.85022368]
[1765226822913,8.16,134.38,134.33,14.26141312]
[1765226823084,0.2,134.39,134.37,6.14705967]
[1765226823409,0.72,134.39,134.37,6.14705967]
[1765226824304,0.2,134.39,134.38,6.80705967]
[1765226826405,0.2,134.39,134.38,14.24864323]
[1765226827112,0.1,134.4,134.38,100.81750723]
[1765226827405,0.2,134.41,134.39,12.95411934]
[1765226827608,0.2,134.41,134.4,28.60298334]
[1765226827816,0.2,134.41,134.4,29.26298334]
[1765226828331,0.1,134.43,134.42,16.308864]
[1765226828631,0.1,134.43,134.42,22.45592367]
[1765226828920,0.1,134.43,134.42,23.11592367]
[1765226829603,0.1,134.43,134.42,6.80705967]
[1765226830521,9.59994492,134.43,134.4,6.14705967]
[1765226831025,9.49994492,134.42,134.39,6.14705967]
[1765226831225,9.49994492,134.42,134.38,6.14705967]
[1765226831435,8.80994492,134.4,134.37,6.14705967]
[1765226831628,8.80994492,134.38,134.35,6.14705967]
[1765226832100,0.69,134.37,134.35,6.14705967]
[1765226832589,0.69,134.37,134.33,6.14705967]
[1765226832590,8.80994492,134.36,134.33,6.14705967]
[1765226833104,8.80994492,134.36,134.31,6.14705967]
[1765226833105,8.80994492,134.34,134.31,6.14705967]
[1765226833585,13.77508329,134.34,134.31,6.14705967]
[1765226833787,14.46508329,134.34,134.31,6.14705967]
[1765226833996,9.49994492,134.34,134.31,6.14705967]
[1765226834406,8.80994492,134.34,134.33,6.14705967]
[1765226834621,4.96756236,134.34,134.33,6.14705967]
[1765226835617,4.96756236,134.34,134.33,6.80705967]
[1765226835920,4.96756236,134.36,134.33,14.25141312]
[1765226836115,4.96756236,134.36,134.35,6.14705967]
[1765226836815,4.96756236,134.36,134.34,6.80705967]
[1765226836994,4.96756236,134.36,134.34,6.14705967]
[1765226837497,5.65756236,134.36,134.33,13.59141312]
[1765226837814,4.96756236,134.36,134.35,13.59030492]
[1765226837996,8.80994492,134.39,134.35,13.59030492]
[1765226838196,4.97249599,134.38,134.36,0.66]
[1765226838398,8.80994492,134.39,134.36,0.66]
[1765226838599,4.97249599,134.38,134.36,0.66]
[1765226839216,4.97249599,134.38,134.37,7.44213738]
[1765226839514,4.97249599,134.4,134.37,6.14705967]
[1765226839720,4.97249599,134.39,134.37,6.14705967]
[1765226839923,4.97249599,134.38,134.37,6.14705967]
[1765226840090,4.97249599,134.39,134.37,6.14705967]
[1765226840417,4.97249599,134.38,134.35,13.59025455]
[1765226840621,13.78812716,134.37,134.33,6.14705967]
[1765226840824,5.66818224,134.36,134.33,6.14705967]
[1765226841119,4.97818224,134.36,134.33,14.25139082]
[1765226841332,4.98104258,134.36,134.35,6.14705967]
[1765226841508,4.98104258,134.37,134.35,6.14705967]
[1765226841697,4.98104258,134.36,134.35,6.83705967]
[1765226841903,4.98104258,134.37,134.35,6.83705967]
[1765226842312,4.98104258,134.37,134.36,6.14705967]
[1765226842506,4.98104258,134.37,134.35,68.24705967]
[1765226843523,5.70104258,134.36,134.35,62.1]
[1765226843696,13.7909875,134.37,134.35,62.1]
[1765226843897,4.98104258,134.36,134.35,62.1]
[1765226845303,8.80994492,134.37,134.35,75.69030492]
[1765226845304,4.98104258,134.37,134.35,75.69030492]
[1765226845514,4.98104258,134.37,134.35,70.23324525]
[1765226846095,4.98104258,134.37,134.36,0.69]
[1765226846330,4.98104258,134.37,134.35,75.69030492]
[1765226846524,4.98104258,134.37,134.35,76.38030492]
[1765226847520,13.14104258,134.38,134.35,76.38030492]
[1765226849645,13.14104258,134.38,134.35,70.23324525]
[1765226851523,13.14104258,134.38,134.35,62.79]
[1765226851722,13.14104258,134.38,134.35,70.23320568]
[1765226854136,5.70104258,134.37,134.35,62.1]
[1765226855027,4.98104258,134.37,134.35,62.1]
[1765226855827,4.98104258,134.37,134.35,62.79]
[1765226856844,4.98104258,134.37,134.35,72.12618774]
[1765226857037,4.98104258,134.37,134.35,72.81618774]
[1765226857540,13.14104258,134.38,134.35,72.81618774]
[1765226858322,9.52994492,134.37,134.35,62.1]
[1765226858522,4.99624874,134.36,134.32,7.44436007]
[1765226858737,8.80994492,134.34,134.3,6.15177086]
[1765226858935,8.80994492,134.32,134.28,0.69]
[1765226859124,13.15624874,134.31,134.28,0.69]
[1765226859335,8.16,134.31,134.28,6.84177086]
[1765226859836,6.87177086,134.33,134.31,7.44533551]
[1765226859837,8.16,134.33,134.31,7.44533551]
[1765226860220,13.15622464,134.33,134.32,0.69]
[1765226860421,22.45387102,134.36,134.32,6.84177086]
[1765226860422,8.16,134.35,134.32,6.84177086]
[1765226860632,13.15429267,134.35,134.32,6.84177086]
[1765226860832,13.15429267,134.35,134.33,8.13435345]
[1765226861138,13.15429267,134.35,134.33,14.28612431]
[1765226861548,13.15429267,134.35,134.32,13.59648342]
[1765226861718,13.15429267,134.35,134.32,14.28648342]
[1765226862118,13.15429267,134.35,134.33,6.15177086]
[1765226863254,8.16,134.35,134.33,6.15177086]
[1765226863431,13.15432095,134.35,134.33,13.59596923]
[1765226863624,9.52994492,134.34,134.29,18.61553904]
[1765226863931,4.99493026,134.33,134.3,7.44565933]
[1765226864236,14.52487518,134.34,134.3,8.13565933]
[1765226864439,4.99493026,134.33,134.31,7.44534461]
[1765226864639,8.16,134.35,134.33,7.44435345]
[1765226864836,4.9943509,134.34,134.32,14.28645303]
[1765226866034,8.16,134.35,134.32,14.28645303]
[1765226866239,13.1543509,134.35,134.32,14.28645303]
[1765226867957,8.16,134.35,134.32,14.28645303]
[1765226868455,13.1532538,134.35,134.32,14.28645303]
[1765226868653,8.16,134.35,134.32,14.28645303]
[1765226869034,13.15308342,134.35,134.32,14.28645303]
[1765226869234,8.16,134.35,134.32,14.28645303]
[1765226869645,13.15294276,134.35,134.32,14.28645303]
[1765226869846,8.88,134.35,134.32,75.69645303]
[1765226870233,8.16,134.35,134.32,76.38645303]
[1765226870737,13.15299011,134.35,134.32,76.38645303]
[1765226870953,8.16,134.35,134.32,76.38645303]
[1765226871460,13.1528717,134.35,134.32,76.38645303]
[1765226871657,8.16,134.35,134.32,75.69645303]
[1765226871837,8.16,134.35,134.33,6.86177086]
[1765226872159,13.15304982,134.35,134.32,75.69645303]
[1765226872355,8.16,134.35,134.33,0.71]
[1765226872746,13.15455176,134.35,134.33,0.71]
[1765226872950,8.16,134.35,134.33,8.15422316]
[1765226873140,8.16,134.35,134.33,14.30599402]
[1765226873537,13.15449515,134.35,134.33,14.30599402]
[1765226873832,8.16,134.35,134.33,14.30599402]
[1765226874648,8.16,134.35,134.33,75.69599402]
[1765226874851,13.1617629,134.37,134.34,6.86177086]
[1765226875051,5.0017629,134.36,134.35,13.59501611]
[1765226875267,5.0017629,134.36,134.35,76.40501611]
[1765226875935,5.0017629,134.36,134.35,62.1]
[1765226877269,14.51170782,134.36,134.35,62.1]
[1765226877944,5.0017629,134.36,134.35,62.1]
[1765226878862,5.0017629,134.36,134.34,70.25349628]
[1765226879062,5.0017629,134.35,134.34,62.1]
[1765226880763,5.0017629,134.35,134.24,44.39845678]
[1765226880764,15.72880859,134.35,134.26,47.5749945]
[1765226880961,28.91460901,134.34,134.3,7.44567283]
[1765226881264,5.0017629,134.33,134.3,7.44567283]
[1765226881467,5.0017629,134.32,134.3,8.14567283]
[1765226881667,0.7,134.33,134.3,7.44567283]
[1765226881960,0.7,134.33,134.28,18.61697277]
[1765226881961,5.0097319,134.32,134.29,7.44636458]
[1765226882183,8.80994492,134.3,134.26,7.4479768]
[1765226882466,8.80994492,134.3,134.25,8.14855618]
[1765226882467,5.00940383,134.29,134.25,8.14855618]
[1765226882643,16.45317883,134.28,134.24,7.44920843]
[1765226882837,5.00940383,134.27,134.24,7.44920843]
[1765226883046,15.05284611,134.3,134.25,10.73256457]
[1765226883250,13.17009537,134.29,134.26,0.7]
[1765226883440,5.01009537,134.28,134.26,0.7]
[1765226883635,8.16,134.29,134.26,0.7]
[1765226883636,5.01009537,134.27,134.26,0.7]
[1765226883839,5.01009537,134.28,134.26,3.283775]
[1765226884039,8.16,134.29,134.27,2.583775]
[1765226884251,8.16,134.29,134.27,3.283775]
[1765226884668,8.16,134.29,134.28,7.4471254]
[1765226884870,13.16438335,134.29,134.26,4.03950989]
[1765226885166,5.00438335,134.28,134.26,12.18736463]
[1765226886653,6.25743426,134.32,134.27,12.18718993]
[1765226886849,4.99972396,134.31,134.29,4.03950989]
[1765226887048,8.86,134.32,134.29,4.03950989]
[1765226887272,4.99983579,134.31,134.29,4.73950989]
[1765226887868,4.99983579,134.31,134.29,12.18578274]
[1765226888851,4.99983579,134.31,134.29,7.44627285]
[1765226889071,4.99983579,134.31,134.29,11.48578274]
[1765226889443,4.99983579,134.31,134.29,12.18578274]
[1765226889644,13.15983579,134.32,134.29,12.18578274]
[1765226889844,4.99983579,134.31,134.29,12.18578274]
[1765226890065,4.99983579,134.31,134.28,11.48646441]
[1765226890271,4.99983579,134.31,134.28,12.18646441]
[1765226890648,4.99983579,134.31,134.29,12.18594117]
[1765226891055,4.99983579,134.31,134.29,4.03950989]
[1765226891256,4.99983579,134.31,134.28,74.28643159]
[1765226891462,4.99983579,134.31,134.29,7.44643418]
[1765226891687,4.99983579,134.31,134.29,12.18594407]
[1765226892746,4.99983579,134.31,134.28,69.54706383]
[1765226893056,4.99983579,134.3,134.28,62.1]
[1765226893547,4.99983579,134.3,134.28,66.13950989]
[1765226895068,4.99983579,134.31,134.29,4.73950989]
[1765226895276,13.15983579,134.33,134.3,4.03950989]
[1765226895585,13.15983579,134.33,134.31,4.03950989]
[1765226895586,4.99983579,134.32,134.31,4.03950989]
[1765226896180,4.99983579,134.32,134.3,4.73950989]
[1765226896361,4.99983579,134.31,134.3,0.7]
[1765226896565,4.99983579,134.32,134.3,8.14598658]
[1765226896758,4.99983579,134.31,134.3,8.14598658]
[1765226896959,4.99983579,134.32,134.3,8.14598658]
[1765226897158,4.99983579,134.31,134.3,8.14598658]
[1765226897568,4.99983579,134.31,134.3,12.18549647]
[1765226898053,5.69983579,134.31,134.28,4.03950989]
[1765226898354,18.45694415,134.33,134.28,7.44694257]
[1765226898355,13.85983579,134.3,134.28,7.44694257]
[1765226898555,8.16,134.33,134.29,4.03950989]
[1765226898752,4.99859663,134.32,134.31,4.03950989]
[1765226899484,4.99859663,134.32,134.3,4.03950989]
[1765226899784,4.99859663,134.31,134.3,11.48532731]
[1765226899954,4.99859663,134.32,134.3,11.48532731]
[1765226900151,4.99859663,134.31,134.3,12.18532731]
[1765226900359,4.99859663,134.32,134.3,12.18532731]
[1765226900557,4.99859663,134.31,134.3,12.18532731]
[1765226900757,4.99859663,134.32,134.3,12.18532731]
[1765226900952,8.16,134.33,134.3,12.18532731]
[1765226900953,4.99859663,134.31,134.3,12.18532731]
[1765226901158,4.99859663,134.32,134.3,12.18532731]
[1765226901361,4.99859663,134.31,134.3,12.18532731]
[1765226901571,4.99859663,134.32,134.3,12.18532731]
[1765226901774,4.99859663,134.31,134.3,12.18532731]
[1765226901962,4.99859663,134.32,134.3,12.18532731]
[1765226902163,4.99859663,134.31,134.3,12.18532731]
[1765226902362,4.99859663,134.32,134.3,12.18532731]
[1765226902589,4.99859663,134.31,134.3,74.28532731]
[1765226904087,4.99859663,134.31,134.3,70.24581742]
[1765226904269,4.99859663,134.31,134.3,70.20581742]
[1765226904991,4.99859663,134.31,134.3,69.54581742]
[1765226905203,8.80994492,134.3,134.25,14.40127472]
[1765226905485,13.15859663,134.29,134.25,0.66]
[1765226905660,4.99859663,134.28,134.25,4.69950989]
[1765226905862,4.99859663,134.27,134.25,12.14806238]
[1765226906094,4.99859663,134.28,134.25,12.14806238]
[1765226906292,4.99859663,134.27,134.22,0.66]
[1765226906503,21.96854155,134.26,134.22,8.11012009]
[1765226906673,4.99859663,134.25,134.22,12.14962998]
[1765226906995,17.85335565,134.24,134.21,0.2]
[1765226907159,8.16,134.23,134.21,0.2]
[1765226907358,13.16126121,134.23,134.21,0.2]
[1765226907592,8.16,134.23,134.21,7.65096939]
[1765226907882,8.16,134.23,134.21,8.31096939]
[1765226908494,8.16,134.23,134.21,0.86]
[1765226908780,8.16,134.23,134.21,8.31088679]
[1765226908994,8.16,134.23,134.22,4.69950989]
[1765226909365,8.16,134.23,134.22,12.14996436]
[1765226910405,8.16,134.25,134.22,12.14996436]
[1765226910704,8.16,134.25,134.23,4.03950989]
[1765226911399,8.16,134.25,134.23,11.48939009]
[1765226911576,8.16,134.25,134.24,4.69950989]
[1765226911885,8.16,134.25,134.23,12.14939009]
[1765226912683,8.86,134.25,134.22,27.79869774]
[1765226912885,8.86,134.25,134.22,12.14983374]
[1765226913072,8.16,134.25,134.22,12.14983374]
[1765226913478,13.15241876,134.25,134.22,12.14983374]
[1765226913680,8.16,134.25,134.22,8.11032385]
[1765226913983,8.16,134.25,134.22,12.14983374]
[1765226914392,9.50994492,134.24,134.21,0.2]
[1765226915378,9.50994492,134.24,134.21,7.6509234]
[1765226915894,8.80994492,134.22,134.21,0.2]
[1765226916069,21.95925286,134.22,134.21,0.2]
[1765226916395,17.66994492,134.22,134.21,0.2]
[1765226917087,22.65805057,134.22,134.21,0.2]
[1765226917787,30.10850504,134.22,134.21,0.2]
[1765226917963,34.14801493,134.22,134.21,0.2]
[1765226918165,52.77415112,134.22,134.18,0.2]
[1765226918366,12.84945481,134.19,134.18,0.2]
[1765226918579,21.00945481,134.19,134.18,0.2]